[Event "Slovakian-ch Youth 2022"]
[Site "Lubovna"]
[Date "2022.05.24"]
[Round "5.17"]
[White "Salgovic, Simon"]
[Black "Koska, Jiri"]
[Result "1-0"]
[ECO "C42"]
[WhiteElo "2091"]
[BlackElo "1759"]
[Annotator "TA"]
[PlyCount "95"]
[EventDate "2022.05.22"]
[EventCountry "SVK"]
[SourceTitle "playchess.com"]
[Source "ChessBase"]
[SourceQuality "1"]
[TimeControl "40/5400+30:1800+30"]

{[%evp 15,95,35,35,39,29,31,55,14,22,18,17,0,0,2,35,34,39,36,41,41,37,27,42,41,43,37,39,35,43,39,39,29,36,25,68,43,44,39,57,44,142,139,136,152,154,161,197,190,183,183,190,182,182,191,242,162,162,161,177,177,182,122,122,122,122,122,128,128,150,129,372,350,960,704,1421,1229,1500,1499,6856,962,5555,946]} 1. e4 {[%emt 0:02:31]} e5 {[%emt 0:00:13]} 2. Nf3 {[%emt 0:00:24]} Nf6 {[%emt 0:00:19]} 3. Nxe5 {[%emt 0:06:10]} d6 {[%emt 0:02:39]} 4. Nf3 {[%emt 0:03:41]} Nxe4 {[%emt 0:00:25]} 5. Nc3 {[%emt 0:00:16]} Nxc3 {[%emt 0:00:32]} 6. dxc3 {[%emt 0:00:02]} Be7 {[%emt 0:00:23]} 7. Be3 {[%emt 0:00:44]} Nc6 {[%emt 0:01:15]} 8. Qd2 {[%emt 0:03:51]} Be6 {[%emt 0:00:24]} 9. O-O-O {[%emt 0:01:57] C42: Petroff Defence: 3 Nxe5 and unusual White 3rd moves.} Qd7 {[%emt 0:00:43]} (9... Bxa2 $2 10. b3 $18) 10. Kb1 {[%emt 0:01:05]} O-O-O {[%emt 0:00:35]} 11. Bb5 {[%emt 0:00:58] White is slightly better.} a6 {[%emt 0:04:01]} 12. Ba4 {[%emt 0:01:49]} Bf6 {[%emt 0:08:08] [#]} 13. Nd4 $146 {[%emt 0:26:32]} ({Predecessor:} 13. Bd4 Bxd4 14. cxd4 Bd5 15. Qg5 f5 16. Rhe1 Rhe8 17. Bxc6 Qxc6 18. Qxf5+ Kb8 19. Qd3 {½-½ (25) Belov,V (2598)-Belozerov,A (2518) Tomsk 2006}) 13... Bxd4 {[%emt 0:01:01]} 14. cxd4 {[%emt 0:09:02]} d5 {[%emt 0:00:32]} 15. Qc3 {[%emt 0:05:57]} Qd6 {[%emt 0:03:25]} 16. Bxc6 {[%emt 0:02:04]} Qxc6 {[%emt 0:00:10]} 17. Qxc6 {[%emt 0:00:13]} bxc6 {[%emt 0:00:03]} 18. Rd3 {[%emt 0:01:42]} Kd7 {[%emt 0:03:55]} 19. Ra3 {[%emt 0:05:49]} Ra8 $1 {[%emt 0:01:26]} 20. Ra5 {[%emt 0:01:34]} Rhb8 {[%emt 0:05:46]} 21. a4 {[%emt 0:02:33]} Rb4 {[%emt 0:02:42]} 22. b3 {[%emt 0:00:54]} Rbb8 {[%emt 0:06:08]} 23. Rd1 {[%emt 0:00:44]} Bf5 {[%emt 0:08:04]} 24. Kb2 {[%emt 0:00:19]} Rb6 {[%emt 0:08:00]} 25. Re1 {[%emt 0:09:18]} Rbb8 {[%emt 0:04:42]} 26. Rc5 {[%emt 0:07:28]} Rb6 {[%emt 0:01:18]} 27. Bd2 {[%emt 0:02:41]} Be6 {[%emt 0:01:38]} ({Black should try} 27... Rbb8 $1 $14) 28. Re3 $16 {[%emt 0:01:24] White is more active.} Kd6 {[%emt 0:16:24]} 29. Rec3 {[%emt 0:00:31]} Ra7 {[%emt 0:02:56]} 30. a5 {[%emt 0:01:36]} Rb5 {[%emt 0:03:03]} 31. Rxc6+ {[%emt 0:00:03]} Kd7 {[%emt 0:00:20]} 32. Bf4 {[%emt 0:01:30]} Rxa5 {[%emt 0:08:23]} 33. Rxc7+ {[%emt 0:00:21]} Rxc7 {[%emt 0:00:06]} 34. Rxc7+ $18 {[%emt 0:00:25][%mdl 4096] Endgame KRB-KRB} Ke8 {[%emt 0:01:07]} (34... Kd8 $142 35. Ra7 Rb5 36. Rxa6 Bc8) 35. Bd2 {[%emt 0:00:56]} Rb5 {[%emt 0:00:36]} 36. Rc6 {[%emt 0:00:04]} a5 {[%emt 0:01:53]} 37. Ra6 {[%emt 0:00:02]} Ke7 {[%emt 0:03:06]} 38. Rxa5 {[%emt 0:00:26]} ({Better is} 38. Ka3 $18) 38... Rxa5 $16 {[%emt 0:00:06]} 39. Bxa5 $18 {[%emt 0:00:08] KB-KB} Kd6 {[%emt 0:00:04]} 40. Ka3 {[%emt 0:00:38]} Kd7 {[%emt 0:00:00]} 41. Kb4 {[%emt 0:00:43] Black must now prevent Kb5.} Bf5 {[%emt 0:03:59]} 42. c4 {[%emt 0:00:12][%cal Bc2c4,Bc4c5,Bc5c6][%mdl 32] [#] Threatens to win with Kc5.} Bd3 $2 {[%emt 0:02:02] Black cannot hold the game after this.} (42... Kc6 $16 43. Kc3 Bc8) 43. Kc5 {[%emt 0:03:21]} Ke6 $2 {[%emt 0:13:40]} (43... dxc4 44. bxc4 h5) 44. Kc6 {[%emt 0:01:24] White is clearly winning.} Bf5 {[%emt 0:05:51]} 45. c5 {[%emt 0:02:34]} Ke7 {[%emt 0:02:23]} 46. Kxd5 {[%emt 0:00:37]} Kd7 {[%emt 0:00:49]} 47. c6+ {[%emt 0:00:05]} Kc8 {[%emt 0:00:04]} 48. Kc5 {[%emt 0:00:15] Weighted Error Value: White=0.09 (flawless) /Black=0.24 (precise)} 1-0

[Event "Slovakian-ch Youth 2022"]
[Site "Lubovna"]
[Date "2022.05.24"]
[Round "5.18"]
[White "Lovcican, Tomas"]
[Black "Janik, Marek Tobias"]
[Result "1/2-1/2"]
[ECO "A01"]
[WhiteElo "2024"]
[BlackElo "1840"]
[Annotator "TA"]
[PlyCount "53"]
[EventDate "2022.05.22"]
[EventCountry "SVK"]
[SourceTitle "playchess.com"]
[Source "ChessBase"]
[SourceQuality "1"]
[TimeControl "40/5400+30:1800+30"]

{[%evp 9,53,-11,17,14,17,-23,-12,-27,-11,-32,-32,-32,-34,-22,-25,-27,-24,-31,-12,-8,-8,-33,-6,-10,-13,-3,-2,-12,-12,-18,-18,-19,-11,-16,-12,-10,-19,-15,-23,-12,-21,-18,-20,-18,-6,-6]} 1. b3 {[%emt 0:00:16]} e5 {[%emt 0:00:09]} 2. Bb2 {[%emt 0:00:03]} Nc6 {[%emt 0:00:04]} 3. e3 {[%emt 0:00:05]} Nf6 {[%emt 0:00:06]} 4. Bb5 {[%emt 0:00:31]} Bd6 {[%emt 0:00:39]} 5. Nf3 {[%emt 0:02:38]} Qe7 {[%emt 0:01:12]} (5... e4 $5 {[%cal Re4f3]} 6. Nd4 O-O $15) 6. Be2 {[%emt 0:06:41] A01: Nimzowitsch-Larsen Opening.} O-O {[%emt 0:03:26] [#]} 7. d4 $146 {[%emt 0:03:37]} ({Predecessor:} 7. d3 Bb4+ 8. c3 Ba5 9. b4 Bb6 10. Nbd2 d6 11. h3 a6 12. a3 h6 13. Qc2 {0-1 (55) Lomakina,G (2070)-Uryupin,I (2301) Tambov 2016}) 7... exd4 {[%emt 0:03:26]} 8. Nxd4 {[%emt 0:01:05]} Nxd4 {[%emt 0:15:25]} 9. Bxd4 {[%emt 0:03:35]} c5 {[%emt 0:08:18]} 10. Bb2 {[%emt 0:02:13]} Be5 {[%emt 0:00:56]} 11. Bxe5 {[%emt 0:12:47]} Qxe5 {[%emt 0:00:06]} 12. Nd2 {[%emt 0:00:07]} d5 {[%emt 0:00:09]} 13. O-O {[%emt 0:00:53]} Be6 {[%emt 0:01:11]} 14. c4 {[%emt 0:23:13]} Rad8 {[%emt 0:02:23]} 15. cxd5 {[%emt 0:07:31]} Bxd5 {[%emt 0:08:58]} 16. Qc2 {[%emt 0:05:41]} Ne4 {[%emt 0:17:10] [#] ...Nxd2 is the strong threat.} 17. Nf3 {[%emt 0:04:38]} Qf6 {[%emt 0:14:11]} 18. Bd3 {[%emt 0:02:22]} Rfe8 {[%emt 0:00:27]} 19. Rac1 {[%emt 0:05:58]} b6 {[%emt 0:01:27]} 20. Rfd1 {[%emt 0:02:22]} g6 {[%emt 0:04:23]} 21. Bb5 {[%emt 0:03:37]} Re6 {[%emt 0:04:32]} 22. Rxd5 {[%emt 0:05:32]} Rxd5 {[%emt 0:01:33]} 23. Bc4 {[%emt 0:00:02]} Rdd6 {[%emt 0:00:23] Hoping for ...Re7.} (23... Rd8 $5 24. Bxe6 Qxe6 $15) 24. Bxe6 {[%emt 0:00:10]} Qxe6 {[%emt 0:00:07] The position is equal.} 25. Rd1 {[%emt 0:00:43]} Rxd1+ {[%emt 0:05:14]} 26. Qxd1 {[%emt 0:00:05]} Qd6 {[%emt 0:01:00]} 27. Qxd6 {[%emt 0:00:33] Weighted Error Value: White=0.05 (flawless) /Black=0.03 (flawless)} 1/2-1/2

[Event "Slovakian-ch Youth 2022"]
[Site "Lubovna"]
[Date "2022.05.24"]
[Round "5.19"]
[White "Paluska, Karol"]
[Black "Rakovsky, Jakub"]
[Result "1-0"]
[ECO "A80"]
[WhiteElo "2006"]
[BlackElo "1888"]
[Annotator "TA"]
[PlyCount "41"]
[EventDate "2022.05.22"]
[EventCountry "SVK"]
[SourceTitle "playchess.com"]
[Source "ChessBase"]
[SourceQuality "1"]
[TimeControl "40/5400+30:1800+30"]

{[%evp 9,41,25,31,31,77,6,19,8,27,41,49,39,46,46,52,0,0,0,47,0,0,0,208,180,190,210,204,186,243,212,537,520,884,857]} 1. d4 {[%emt 0:00:05]} f5 {[%emt 0:01:14]} 2. Qd3 {[%emt 0:00:22]} d5 {[%emt 0:03:32]} 3. Bf4 {[%emt 0:01:09]} Nf6 {[%emt 0:02:17]} 4. Nf3 {[%emt 0:00:49]} e6 {[%emt 0:01:07]} 5. c4 {[%emt 0:03:52]} c5 {[%emt 0:07:14]} 6. e3 {[%emt 0:06:11] [#] A80: Dutch Defence: Unusual White second moves.} Qb6 $146 {[%emt 0:02:08]} (6... cxd4 $14 7. exd4 Bd6 8. Bxd6 Qxd6) ({Predecessor:} 6... Nc6 7. Nc3 cxd4 8. Nxd4 Bc5 9. cxd5 Nxd5 10. Nxd5 exd5 11. Nxc6 bxc6 12. Qc3 Qe7 {½-½ (21) Ruether,R (2328)-Bucinskas,V (2317) ICCF email 2014}) 7. Qc2 {[%emt 0:02:58]} (7. Nc3 $16) 7... Nc6 $11 {[%emt 0:01:19][%cal Rc5d4]} 8. Be5 {[%emt 0:07:39] The position is equal.} Nxe5 {[%emt 0:13:02]} 9. dxe5 {[%emt 0:00:21]} Ne4 {[%emt 0:02:16]} 10. Nc3 {[%emt 0:01:18]} d4 {[%emt 0:07:26]} 11. Nxe4 {[%emt 0:05:13]} fxe4 {[%emt 0:01:36]} 12. Qxe4 {[%emt 0:00:13]} (12. Nd2 $14) 12... Qxb2 {[%emt 0:06:51]} 13. Rd1 {[%emt 0:02:23]} Bd7 {[%emt 0:11:40]} (13... Qc3+ $1 $11 {should be considered.} 14. Rd2 (14. Nd2 dxe3 15. Qxe3 Qxe3+ 16. fxe3 Be7 $11) 14... Qc1+ 15. Rd1 Qc3+ 16. Rd2 (16. Nd2 dxe3 17. fxe3 Be7 $11) 16... Qc1+ 17. Rd1 Qc3+) 14. Bd3 $1 $14 {[%emt 0:01:34] [#] Hoping for 0-0.} Qc3+ $1 {[%emt 0:00:39]} 15. Ke2 {[%emt 0:02:23]} dxe3 $2 {[%emt 0:02:13]} (15... O-O-O $11) 16. Qxb7 $18 {[%emt 0:01:44] Threatening mate with Bg6+.} Rd8 {[%emt 0:01:39]} 17. fxe3 {[%emt 0:02:08]} Be7 {[%emt 0:10:10]} 18. Qe4 {[%emt 0:03:40]} Qa5 {[%emt 0:01:33]} ({Not} 18... Ba4 19. Rd2) (18... Bc8 $142 19. Rd2 Qb4) 19. Rhf1 {[%emt 0:01:52][%cal Of3g5] [#] Black must now prevent Ng5! Active counter play!} Qxa2+ $2 {[%emt 0:01:38]} (19... Bc8 {is tougher.} 20. Ne1 Rd7) 20. Nd2 {[%emt 0:00:36][%cal Oe4g6] White threatens Qg6+! and mate.} Rb8 {[%emt 0:04:32]} (20... Rc8 $142 21. Ra1 Qb2) 21. Ra1 {[%emt 0:01:39] Weighted Error Value: White=0.17 (very precise) /Black=0.58} 1-0

[Event "Slovakian-ch Youth 2022"]
[Site "Lubovna"]
[Date "2022.05.24"]
[Round "5.20"]
[White "Orgon, Patrik"]
[Black "Horvath, Marek"]
[Result "1/2-1/2"]
[ECO "B12"]
[WhiteElo "1721"]
[BlackElo "1801"]
[Annotator "NA RC COMBH"]
[PlyCount "57"]
[EventDate "2022.05.22"]
[EventCountry "SVK"]
[SourceTitle "playchess.com"]
[Source "ChessBase"]
[SourceQuality "1"]
[TimeControl "40/5400+30:1800+30"]

1. e4 {[%emt 0:00:27]} c6 {[%emt 0:03:05]} 2. d4 {[%emt 0:01:03]} d5 {[%emt 0:00:04]} 3. e5 {[%emt 0:00:59]} Bf5 {[%emt 0:00:06]} 4. Nc3 {[%emt 0:00:11]} e6 {[%emt 0:00:05]} 5. g4 {[%emt 0:00:07]} Bg6 {[%emt 0:00:11]} 6. Nge2 {[%emt 0:01:15]} c5 {[%emt 0:04:16]} 7. Nf4 {[%emt 0:10:02]} Nc6 {[%emt 0:06:06]} 8. Be3 {[%emt 0:04:47]} Bxc2 {[%emt 0:05:16]} 9. Qd2 {[%emt 0:06:44]} Bg6 {[%emt 0:03:27]} 10. h4 {[%emt 0:02:25]} cxd4 {[%emt 0:06:02]} 11. Bxd4 {[%emt 0:00:14]} Be4 {[%emt 0:04:44]} 12. Rh3 {[%emt 0:17:35]} h6 {[%emt 0:05:00]} 13. Nxe4 {[%emt 0:14:53]} dxe4 {[%emt 0:00:56]} 14. O-O-O {[%emt 0:00:50]} Qxd4 {[%emt 0:04:07]} 15. Qxd4 {[%emt 0:00:43]} Nxd4 {[%emt 0:00:02]} 16. Rxd4 {[%emt 0:00:11]} Rc8+ {[%emt 0:04:41]} 17. Kd1 {[%emt 0:03:50]} Ne7 {[%emt 0:02:40]} 18. Nh5 {[%emt 0:07:23]} Nd5 {[%emt 0:11:42]} 19. Bb5+ {[%emt 0:02:35]} Ke7 {[%emt 0:00:08]} 20. Rxe4 {[%emt 0:03:42]} g6 {[%emt 0:00:18]} 21. Ng3 {[%emt 0:07:15]} Bg7 {[%emt 0:04:49]} 22. Ne2 {[%emt 0:04:18]} h5 {[%emt 0:04:05]} 23. g5 {[%emt 0:00:32]} Rhd8 {[%emt 0:00:21]} 24. Bd3 {[%emt 0:02:04]} Kf8 {[%emt 0:03:08]} 25. Rf3 {[%emt 0:01:20]} Kg8 {[%emt 0:01:59]} 26. Kd2 {[%emt 0:01:09]} Bf8 {[%emt 0:00:52]} 27. a3 {[%emt 0:00:51]} Rc7 {[%emt 0:02:12]} 28. Nf4 {[%emt 0:02:18]} Ne7 {[%emt 0:01:56]} 29. Ng2 {[%emt 0:01:12]} 1/2-1/2

[Event "Slovakian-ch Youth 2022"]
[Site "Lubovna"]
[Date "2022.05.24"]
[Round "5.21"]
[White "Sevcik, Matej"]
[Black "Havalda, Samuel"]
[Result "1-0"]
[ECO "A29"]
[WhiteElo "1820"]
[BlackElo "1465"]
[Annotator "NA RC COMBH"]
[PlyCount "86"]
[EventDate "2022.05.22"]
[EventCountry "SVK"]
[SourceTitle "playchess.com"]
[Source "ChessBase"]
[SourceQuality "1"]
[TimeControl "40/5400+30:1800+30"]

1. c4 {[%emt 0:00:32]} e5 {[%emt 0:00:35]} 2. g3 {[%emt 0:00:04]} Nf6 {[%emt 0:00:22]} 3. Bg2 {[%emt 0:00:17]} d5 {[%emt 0:01:12]} 4. cxd5 {[%emt 0:00:08]} Nxd5 {[%emt 0:00:05]} 5. Nf3 {[%emt 0:00:07]} Nc6 {[%emt 0:00:45]} 6. O-O {[%emt 0:00:13]} Nb6 {[%emt 0:01:21]} 7. Nc3 {[%emt 0:00:10]} Be6 {[%emt 0:00:43]} 8. d3 {[%emt 0:01:14]} f6 {[%emt 0:03:01]} 9. Be3 {[%emt 0:02:38]} Qd7 {[%emt 0:03:10]} 10. Ne4 {[%emt 0:04:37]} O-O-O {[%emt 0:15:53]} 11. Rc1 {[%emt 0:22:03]} Kb8 {[%emt 0:07:06]} 12. Bc5 {[%emt 0:06:07]} Bd5 {[%emt 0:07:53]} 13. Nfd2 {[%emt 0:08:30]} f5 {[%emt 0:01:02]} 14. Bxf8 {[%emt 0:02:46]} fxe4 {[%emt 0:04:05]} 15. dxe4 {[%emt 0:00:26]} Be6 {[%emt 0:03:22]} 16. Rxc6 {[%emt 0:08:07]} bxc6 {[%emt 0:00:29]} 17. Bb4 {[%emt 0:00:13]} Nc4 {[%emt 0:00:04]} 18. Qa4 {[%emt 0:01:10]} c5 {[%emt 0:00:39]} 19. Qxd7 {[%emt 0:01:15]} Rxd7 {[%emt 0:00:34]} 20. Nxc4 {[%emt 0:00:10]} Bxc4 {[%emt 0:00:11]} 21. Bxc5 {[%emt 0:01:04]} Bxe2 {[%emt 0:01:20]} 22. Re1 {[%emt 0:00:36]} Rd2 {[%emt 0:00:17]} 23. Bh3 {[%emt 0:01:34]} Rhd8 {[%emt 0:00:29]} 24. Kg2 {[%emt 0:01:32]} g5 {[%emt 0:04:03]} 25. Be6 {[%emt 0:04:35]} g4 {[%emt 0:01:45]} 26. Bd5 {[%emt 0:01:18]} Bf3+ {[%emt 0:03:15]} 27. Kg1 {[%emt 0:00:31]} c6 {[%emt 0:02:00]} 28. Be7 {[%emt 0:00:43]} Rd7 {[%emt 0:02:07]} 29. Bb4 {[%emt 0:00:26]} Rxb2 {[%emt 0:05:28]} 30. Bc3 {[%emt 0:00:14]} Rc2 {[%emt 0:01:15]} 31. Rb1+ {[%emt 0:03:06]} Rb7 {[%emt 0:00:43]} 32. Bxe5+ {[%emt 0:01:07]} Kc8 {[%emt 0:00:04]} 33. Be6+ {[%emt 0:01:33]} Kd8 {[%emt 0:00:14]} 34. Bf6+ {[%emt 0:00:30]} Ke8 {[%emt 0:00:08]} 35. Bb3 {[%emt 0:01:21]} Bxe4 {[%emt 0:06:59]} 36. Re1 {[%emt 0:01:23]} Rd2 {[%emt 0:04:11]} 37. Rxe4+ {[%emt 0:00:50]} Kf8 {[%emt 0:03:10]} 38. Rxg4 {[%emt 0:01:02]} Rf7 {[%emt 0:00:32]} 39. Rf4 {[%emt 0:02:13]} Re2 {[%emt 0:05:11]} 40. Bg7+ {[%emt 0:00:29]} Kxg7 {[%emt 0:00:15]} 41. Rxf7+ {[%emt 0:30:07]} Kg6 {[%emt 0:30:13]} 42. Rxa7 {[%emt 0:00:15]} Re1+ $18 {[%emt 0:00:35]} 43. Kg2 {[%emt 0:00:04]} Rg1+ {[%emt 0:00:14]} 1-0

[Event "Slovakian-ch Youth 2022"]
[Site "Lubovna"]
[Date "2022.05.24"]
[Round "5.22"]
[White "Papp, Gabor"]
[Black "Jurky, Marian"]
[Result "0-1"]
[ECO "A40"]
[WhiteElo "2564"]
[BlackElo "1689"]
[Annotator "TA"]
[PlyCount "34"]
[EventDate "2022.05.22"]
[EventCountry "SVK"]
[SourceTitle "playchess.com"]
[Source "ChessBase"]
[SourceQuality "1"]
[TimeControl "40/5400+30:1800+30"]

{[%evp 10,34,10,17,24,0,11,-32,-45,-38,-36,-33,-38,-41,-24,-132,-115,-141,-119,-310,-320,-312,-342,-737,-739,-29997,-29998]} 1. d4 {[%emt 0:00:07]} b6 {[%emt 0:00:07]} 2. c4 {[%emt 0:01:58]} Bb7 {[%emt 0:00:08]} 3. Nc3 {[%emt 0:00:10]} e6 {[%emt 0:00:05]} 4. e4 {[%emt 0:00:19]} Bb4 {[%emt 0:00:19]} 5. Qc2 {[%emt 0:01:17]} Qh4 {[%emt 0:02:44]} 6. Bd3 {[%emt 0:05:27] Black should prevent Nf3.} Bxc3+ {[%emt 0:01:49] A40: Unusual replies to 1 d4.} 7. bxc3 {[%emt 0:00:19]} ({Reject} 7. Qxc3 Bxe4 8. g3 Qg4 $11) 7... f5 $1 {[%emt 0:01:41][%cal Rb7e4]} 8. d5 {[%emt 0:07:57]} ({Of course not} 8. Nf3 Qg4 9. Bf1 Qxe4+ 10. Qxe4 fxe4 $15) (8. g3 $5 {[%cal Rg3h4]} Qh5 9. f3 $11) 8... fxe4 {[%emt 0:00:25] Black is slightly better.} 9. Bxe4 {[%emt 0:00:58] [#] Nf3 is the strong threat.} Nf6 {[%emt 0:00:13][%csl LRd5,LRe4]} 10. Bd3 {[%emt 0:04:32]} exd5 {[%emt 0:00:31]} 11. Nf3 {[%emt 0:13:13]} Qg4 {[%emt 0:02:08] [#]} 12. Bf5 $146 {[%emt 0:13:12]} (12. O-O $1 $11) ({Predecessor:} 12. Qe2+ Qe6 13. Be3 O-O 14. O-O dxc4 15. Bxc4 d5 16. Bb3 Ba6 17. c4 dxc4 18. Bc2 {0-1 (38) Sidabras,I (1731)-Armonaitis,S (2087) Klaipeda 2015}) 12... Qxc4 $17 {[%emt 0:23:18]} ({Much weaker is} 12... Qxg2 $6 13. Qe2+ Ne4 14. Rg1 Qxf2+ 15. Qxf2 Nxf2 16. Kxf2 $14) 13. Ne5 {[%emt 0:02:38]} Qc5 {[%emt 0:02:25] Threatens to win with ...Qe7.} 14. Bg6+ $2 {[%emt 0:18:43] [#]} hxg6 $19 {[%emt 0:04:29]} 15. Qxg6+ {[%emt 0:00:06]} Kd8 {[%emt 0:00:07]} 16. Qxg7 $2 {[%emt 0:07:23]} (16. O-O Re8 17. Bg5) 16... Qxc3+ {[%emt 0:01:36]} 17. Kf1 {[%emt 0:00:02]} Ba6+ {[%emt 0:00:32] White got outplayed after the opening.  Weighted Error Value: White=1.51/Black=0.02 (flawless)} 0-1

[Event "Slovakian-ch Youth 2022"]
[Site "Lubovna"]
[Date "2022.05.24"]
[Round "5.23"]
[White "Lakota, Jan"]
[Black "Baron, Patrik"]
[Result "0-1"]
[ECO "B13"]
[WhiteElo "1488"]
[BlackElo "1740"]
[Annotator "NA COMBH"]
[PlyCount "66"]
[EventDate "2022.05.22"]
[EventCountry "SVK"]
[SourceTitle "playchess.com"]
[Source "ChessBase"]
[SourceQuality "1"]
[TimeControl "40/5400+30:1800+30"]

1. e4 {[%emt 0:00:06]} c6 {[%emt 0:01:39]} 2. d4 {[%emt 0:00:29]} d5 {[%emt 0:00:06]} 3. exd5 {[%emt 0:00:53]} cxd5 {[%emt 0:00:06]} 4. c4 {[%emt 0:00:25]} Nf6 {[%emt 0:00:06]} 5. Nf3 {[%emt 0:01:06]} g6 {[%emt 0:00:09]} 6. c5 {[%emt 0:01:01]} Bg7 {[%emt 0:02:24]} 7. Bd3 {[%emt 0:03:16]} Nc6 {[%emt 0:00:38]} 8. Nc3 {[%emt 0:01:20]} O-O {[%emt 0:02:48]} 9. Be3 {[%emt 0:10:52]} e6 {[%emt 0:17:46]} 10. a3 {[%emt 0:16:41]} a6 {[%emt 0:08:11]} 11. b4 {[%emt 0:11:13]} Re8 {[%emt 0:08:11]} 12. O-O {[%emt 0:04:21]} e5 {[%emt 0:04:16]} 13. Be2 {[%emt 0:07:55]} exd4 {[%emt 0:03:30]} 14. Nxd4 {[%emt 0:02:41]} Ne4 {[%emt 0:03:52]} 15. Nxe4 {[%emt 0:16:55]} Rxe4 {[%emt 0:04:54]} 16. Nxc6 {[%emt 0:00:35]} bxc6 {[%emt 0:00:12]} 17. Bf3 {[%emt 0:02:14]} Bg4 {[%emt 0:07:11]} 18. Bxg4 {[%emt 0:01:20]} Bxa1 {[%emt 0:00:49]} 19. Bf3 {[%emt 0:00:12]} Rxe3 {[%emt 0:01:12]} 20. fxe3 {[%emt 0:00:22]} Be5 {[%emt 0:03:01]} 21. Qe1 {[%emt 0:01:09]} f5 {[%emt 0:04:16]} 22. Qf2 {[%emt 0:06:27]} Qe7 {[%emt 0:04:54]} 23. Re1 {[%emt 0:01:34]} Kg7 {[%emt 0:05:58]} 24. h3 {[%emt 0:02:54]} Qg5 {[%emt 0:02:57]} 25. Rb1 {[%emt 0:01:25]} Bg3 {[%emt 0:02:53]} 26. Qd2 {[%emt 0:01:22]} Re8 {[%emt 0:01:51]} 27. Qd4+ {[%emt 0:02:14]} Kf7 {[%emt 0:00:53]} 28. Rb3 {[%emt 0:00:15]} Be5 {[%emt 0:01:30]} 29. Qd3 {[%emt 0:01:12]} Qg3 {[%emt 0:01:06]} 30. Qxa6 {[%emt 0:00:11]} Qe1+ {[%emt 0:00:29]} 31. Qf1 {[%emt 0:00:08]} Bh2+ {[%emt 0:00:16]} 32. Kxh2 {[%emt 0:00:38]} Qxf1 {[%emt 0:00:10]} 33. a4 {[%emt 0:00:03]} Qc4 {[%emt 0:01:19]} 0-1

[Event "Slovakian-ch Youth 2022"]
[Site "Lubovna"]
[Date "2022.05.24"]
[Round "5.24"]
[White "Volanek, Maros"]
[Black "Sustek, Adam"]
[Result "1/2-1/2"]
[ECO "C01"]
[WhiteElo "1458"]
[BlackElo "1636"]
[Annotator "NA RC COMBH"]
[PlyCount "44"]
[EventDate "2022.05.22"]
[EventCountry "SVK"]
[SourceTitle "playchess.com"]
[Source "ChessBase"]
[SourceQuality "1"]
[TimeControl "40/5400+30:1800+30"]

1. e4 {[%emt 0:00:06]} e6 {[%emt 0:00:23]} 2. d4 {[%emt 0:00:08]} d5 {[%emt 0:00:04]} 3. Bd3 {[%emt 0:00:06]} Nf6 {[%emt 0:00:44]} 4. e5 {[%emt 0:00:54]} Nfd7 {[%emt 0:00:06]} 5. f4 {[%emt 0:01:07]} c5 {[%emt 0:01:31]} 6. c3 {[%emt 0:00:19]} b6 {[%emt 0:01:19]} 7. Nf3 {[%emt 0:04:20]} Ba6 {[%emt 0:00:59]} 8. Bxa6 {[%emt 0:01:13]} Nxa6 {[%emt 0:00:07]} 9. O-O {[%emt 0:02:55]} Be7 {[%emt 0:02:36]} 10. Be3 {[%emt 0:04:50]} O-O {[%emt 0:02:38]} 11. a3 {[%emt 0:11:41]} Nab8 {[%emt 0:11:14]} 12. Nbd2 {[%emt 0:00:30]} Nc6 {[%emt 0:05:32]} 13. Rc1 {[%emt 0:04:18]} c4 {[%emt 0:06:10]} 14. Rf2 {[%emt 0:07:04]} b5 {[%emt 0:05:07]} 15. g4 {[%emt 0:14:50]} f6 {[%emt 0:08:27]} 16. f5 {[%emt 0:11:48]} fxe5 {[%emt 0:18:28]} 17. fxe6 {[%emt 0:01:05]} e4 {[%emt 0:01:12]} 18. exd7 {[%emt 0:06:59]} exf3 {[%emt 0:00:31]} 19. Nxf3 {[%emt 0:00:42]} Qxd7 {[%emt 0:01:17]} 20. h3 {[%emt 0:00:19]} Rac8 {[%emt 0:03:41]} 21. Qd2 {[%emt 0:03:41]} Rce8 {[%emt 0:00:30]} 22. Ne5 {[%emt 0:07:31]} h5 {[%emt 0:06:10]} 1/2-1/2

[Event "Slovakian-ch Youth 2022"]
[Site "Lubovna"]
[Date "2022.05.24"]
[Round "5.25"]
[White "Ondrejcak Gregor"]
[Black "Klimek Martin"]
[Result "0-1"]
[ECO "B02"]
[WhiteElo "1000"]
[BlackElo "1418"]
[Annotator "NA RC COMBH"]
[PlyCount "48"]
[EventDate "2022.05.22"]
[EventCountry "SVK"]
[SourceTitle "playchess.com"]
[Source "ChessBase"]
[SourceQuality "1"]
[TimeControl "40/5400+30:1800+30"]

1. e4 {[%emt 0:00:09]} d5 {[%emt 0:00:09]} 2. exd5 {[%emt 0:00:08]} Nf6 {[%emt 0:00:08]} 3. Nc3 {[%emt 0:00:27]} Nxd5 {[%emt 0:00:11]} 4. Qf3 {[%emt 0:01:04]} Nb6 {[%emt 0:01:57]} 5. d3 {[%emt 0:00:54]} Nc6 {[%emt 0:01:45]} 6. Be3 {[%emt 0:01:22]} e5 {[%emt 0:02:52]} 7. O-O-O {[%emt 0:01:05]} Be6 {[%emt 0:01:37]} 8. g3 {[%emt 0:02:16]} Nd5 {[%emt 0:04:08]} 9. Qe2 {[%emt 0:01:26]} Nxc3 {[%emt 0:01:17]} 10. bxc3 {[%emt 0:00:13]} Qd5 {[%emt 0:08:21]} 11. f3 {[%emt 0:03:07]} Qxa2 {[%emt 0:02:22]} 12. Kd2 {[%emt 0:00:26]} Nb4 {[%emt 0:08:26]} 13. Ke1 {[%emt 0:00:11]} Nxc2+ {[%emt 0:00:38]} 14. Kf2 {[%emt 0:00:43]} Nxe3 {[%emt 0:00:54]} 15. Kxe3 {[%emt 0:00:24]} Qxe2+ {[%emt 0:02:23]} 16. Kxe2 {[%emt 0:01:16]} O-O-O {[%emt 0:01:10]} 17. Ke1 {[%emt 0:05:25]} Bc5 {[%emt 0:01:54]} 18. Ne2 {[%emt 0:00:57]} Bb3 {[%emt 0:02:32]} 19. Rb1 {[%emt 0:01:47]} Bc2 {[%emt 0:01:45]} 20. Rb5 {[%emt 0:02:35]} b6 {[%emt 0:05:04]} 21. Bh3+ {[%emt 0:02:56]} Kb8 {[%emt 0:00:51]} 22. Kf1 {[%emt 0:02:43]} Rxd3 {[%emt 0:00:00]} 23. Kg2 {[%emt 0:01:36]} Rd2 {[%emt 0:00:17]} 24. Re1 {[%emt 0:01:11]} Bd3 {[%emt 0:01:18]} 0-1